Cogmind - Beta 17.1 @@@ ROGUE MODE // 2026.08.31 @ 20:58:58 Player: Petvaria Result: Destroyed by Y-54 Guardian with Gatling Laser Performance ------------- Evolutions (0) 0 Regions Visited (3) 600 Robots Destroyed (41) 205 Value Destroyed (1025) 1025 Prototype IDs (0) 0 Alien Tech Used (0) 0 Bonus (0) 0 TOTAL SCORE: 1830 Bonus ------- None Cogmind --------- Core Integrity 0/250 Matter 233/300 Energy 102/200 System Corruption 9% Temperature Cool (6) Movement Treading (360) Ox2 Location -7/Recycling Parts ------- > --- POWER (1) -------- Subdweller Power Source > --- PROPULSION (2) --- Spiked Treads > --- UTILITY (2) ------ Improved Heat Sink High-capacity Storage Unit > --- WEAPON (2) ------- Subdweller Laser Subdweller Laser > --- INVENTORY (20) --- Compact Wheel Subdweller Monowheel High-capacity Matter Pod (178) Makeshift Hacking Suite Subdweller Machine Gun SUBCON Basin (Full) Peak State ------------ > --- POWER ------------ Subdweller Power Source > --- PROPULSION ------- Light Treads Spiked Treads > --- UTILITY ---------- Improved Heat Sink High-capacity Storage Unit > --- WEAPON ----------- Subdweller Laser Subdweller Machine Gun > --- INVENTORY -------- Compact Wheel Subdweller Monowheel High-capacity Matter Pod Makeshift Hacking Suite Subdweller Laser SUBCON Basin [Rating: 32] Favorites ----------- Power Light Ion Engine Engine Light Ion Engine Power Core Light Nuclear Core Propulsion Light Treads Treads Light Treads Wheel Wheel Utility High-capacity Storage Unit Device Seismic Detector Storage High-capacity Storage Unit Protection Scrap Shield Weapon Subdweller Laser Energy Gun Subdweller Laser Energy Cannon Subdweller Beam Cannon Ballistic Gun Subdweller Machine Gun Launcher Grenade Launcher Special Melee Weapon Datajack Build | -11 -10 -10 -7 ------- Run | Yrd Mat Sub Rec Slots Evolved . | . . . . Power . | . . . . Propulsion . | . . . . Utility . | . . . . Weapon . | . . . . Parts Attached 30 | 8 6 16 . Power 4 | 1 1 2 . Engine 3 | 1 . 2 . Core 1 | . 1 . . Reactor . | . . . . Propulsion 6 | 3 . 3 . Treads 4 | 2 . 2 . Leg . | . . . . Wheel 2 | 1 . 1 . Hover . | . . . . Flight . | . . . . Utility 7 | 2 3 2 . Device 2 | 1 . 1 . Storage 4 | 1 3 . . Processor . | . . . . Hackware . | . . . . Protection 1 | . . 1 . Artifact . | . . . . Weapon 13 | 2 2 9 . Energy Gun 4 | 1 . 3 . Energy Cannon 3 | . . 3 . Ballistic Gun 4 | 1 1 2 . Ballistic Cannon . | . . . . Launcher 1 | . 1 . . Special Weapon . | . . . . Impact Weapon . | . . . . Slashing Weapon . | . . . . Piercing Weapon . | . . . . Special Melee Weapon 1 | . . 1 . Unidentified Prototypes . | . . . . Parts Lost 6 | . 1 4 1 Power 1 | . 1 . . Propulsion 3 | . . 2 1 Utility 1 | . . 1 . Weapon 1 | . . 1 . Highest Loss Streak 2 | . 1 2 1 To Critical Strikes . | . . . . Average Backups 9 | 5 12 9 5 Power . | . 1 . . Propulsion 3 | 3 4 2 2 Utility 2 | . 3 3 2 Weapon 2 | 1 2 2 1 Tool/Special . | . . . . Unused Backups 9 | . . 6 3 Power . | . . . . Propulsion 3 | . . 2 1 Utility 5 | . . 3 2 Weapon 1 | . . 1 . Tool/Special . | . . . . Average Slot Usage (%) 93 | . 99 89 100 Engine 9 | . 10 8 14 Core 4 | . 3 5 . Treads 22 | . 28 19 28 Wheel 5 | . . 8 . Device 9 | . 14 6 14 Storage 10 | . 14 8 14 Protection 3 | . . 5 . Energy Gun 9 | . 9 7 14 Energy Cannon 4 | . . 7 . Ballistic Gun 13 | . 18 10 13 Peak Build Rating 32 | 7 10 32 32 Average Rating 14 | 4 8 14 31 On Entrance 12 | . 7 10 32 Avg Prop Armor Cover (%) 8 | . . 8 . Naked Turns . | . . . . Heaviest Build 56 | 13 50 56 54 Greatest Support 40 | 40 40 40 40 Greatest Overweight (x) 5 | . 1 5 1 Average Overweight (x) 1 | . . 2 1 Largest Inventory Capacity 20 | 8 20 20 20 Average Capacity 15 | 7 17 14 20 Most Carried 20 | 8 16 20 20 Average Carried 12 | 5 12 12 20 Final Capacity 20 | 8 20 20 20 Final Carried 20 | 6 15 20 20 Class Distribution -------------------- 41% | Mutant 37% | Scavenger-Mutant 20% | Subdweller-Mutant Dominant Class ---------------- Mutant | -10/Materials Scavenger-Mutant | -10/Subcaves Scavenger-Mutant | -7/Recycling Resources | -11 -10 -10 -7 ----------- Run | Yrd Mat Sub Rec Matter Collected 1256 | 333 278 645 . Remotely . | . . . . Salvage Created 1356 | 195 323 838 . Parts 82 | 13 15 54 . Haulers Intercepted 1 | . 1 . . Recyclers Shooed 2 | 1 1 . . Parts Field Recycled . | . . . . Retrieved Matter . | . . . . Parts Self-Destructed 13 | . . 13 . Prevented . | . . . . Parts Restored . | . . . . Kills | -11 -10 -10 -7 ------- Run | Yrd Mat Sub Rec Combat Hostiles Destroyed 32 | . 9 23 . Guns 18 | . 6 12 . Cannons 8 | . . 8 . AOE 5 | . 3 2 . Classes Destroyed 9 | 3 4 2 . Worker 1 | 1 . . . Builder 1 | . 1 . . Tunneler 5 | 5 . . . Hauler 1 | . 1 . . Recycler 1 | 1 . . . Swarmer 10 | . 3 7 . Grunt 8 | . 6 2 . Sentry 1 | . . 1 . Subdweller 13 | . . 13 . Best Kill Streak 3 | 2 3 3 . Combat Bots Only 3 | . 3 3 . Max Kills in Single Turn 2 | 1 2 1 . Gunslinging . | . . . . Exploded 2 | . 2 1 . Melee . | . . . . Uniques/NPCs Destroyed . | . . . . Combat | -11 -10 -10 -7 -------- Run | Yrd Mat Sub Rec Hostile Shots Fired 191 | . 56 78 57 Missed 56 | . 19 23 14 Hits 135 | . 37 55 43 Projectile 135 | . 37 55 43 AOE 2 | . . 2 . Critical Strikes 2 | . . 2 . Damage Taken 1781 | . 392 1084 305 Core 253 | . 59 122 72 Absorbed by Shields . | . . . . Core Remaining (%) 100 | 100 . . . Volleys Fired 173 | 21 40 102 10 Largest 2 | 2 2 2 2 Hottest 120 | 70 70 90 120 Shots Fired 254 | 42 74 126 12 Gun 192 | 42 71 67 12 Cannon 55 | . . 55 . Launcher 7 | . 3 4 . Special . | . . . . Kinetic 118 | 21 56 40 1 Thermal 129 | 21 15 82 11 Explosive 7 | . 3 4 . Electromagnetic . | . . . . Robot Hit Streak 18 | 5 9 18 3 Robot Miss Streak 3 | 3 3 3 3 Penetration Max . | . . . . Secondary Targets 1 | . 1 . . Max Gunslinging Chain 1 | . 1 . . Shots Hit Robots 131 | 26 47 52 6 Core Hits 60 | 8 20 29 3 Critical Kills 1 | . . 1 . Critical Parts Destroyed . | . . . . Critical Strikes 6 | 1 2 3 . Burn 4 | 1 2 1 . Meltdown 1 | . . 1 . Destroy 1 | . . 1 . Melee Attacks 3 | . . 3 . Impact . | . . . . Slashing . | . . . . Piercing . | . . . . Sneak Attacks . | . . . . Combat Hostiles . | . . . . Follow-up Attacks . | . . . . Damage Inflicted 2435 | 317 791 1187 140 Guns 1598 | 313 510 650 125 Cannons 471 | . . 471 . Explosions 323 | . 263 60 . Melee . | . . . . Ramming 43 | 4 18 6 15 Kinetic 1008 | 187 424 397 . Thermal 1061 | 126 86 724 125 Explosive 323 | . 263 60 . Electromagnetic . | . . . . Impact . | . . . . Slashing . | . . . . Piercing . | . . . . Highest Corruption 9 | . . 9 9 Average Corruption 9 | . . 9 9 Corruption Purged . | . . . . Corruption Blocked . | . . . . Effects 58 | . . 32 26 Message Errors 12 | . . 5 7 Matter Fused 15 | . . 9 6 Heat Flow Errors 4 | . . 2 2 Energy Discharges 9 | . . 4 5 Data Loss (minor) 5 | . . 4 1 Data Loss (major) 5 | . . 3 2 Misfires 5 | . . 4 1 Alerts 2 | . . 1 1 Weapon Failures 1 | . . . 1 Overload Shots . | . . . . Overflow Damage 11 | . 11 . . Projectiles . | . . . . Explosions 11 | . 11 . . Melee . | . . . . Knockbacks . | . . . . Impact . | . . . . Kinetic . | . . . . Secondary . | . . . . Self-Inflicted Damage 18 | . . 18 . Shots 1 | . . 1 . Rammed 9 | . 4 1 4 Targets Rammed 10 | 1 4 1 4 Kicked . | . . . . Crushed 1 | 1 . . . Highest Temperature 233 | 81 70 233 211 Average Temperature 31 | 29 27 25 68 Received Heat Transfer 546 | . 177 285 84 Siege Activations . | . . . . Martial Activations . | . . . . Shielding Activations . | . . . . Robots Disrupted . | . . . . Combat Hostiles . | . . . . Robots Corrupted . | . . . . Combat Hostiles . | . . . . Parts Fried . | . . . . Impact Corruptions . | . . . . Robots Melted 1 | . . 1 . Combat Hostiles 1 | . . 1 . Parts Melted 3 | . 2 1 . Heat Transferred 1978 | 444 407 1052 75 Parts Sabotaged . | . . . . Parts Stolen . | . . . . Parts Stripped . | . . . . Power Chain Reactions . | . . . . Alert | -11 -10 -10 -7 ------- Run | Yrd Mat Sub Rec Maximum Alert Level . | . . . . Low Security (%) 100 | 100 100 . 100 Level 1 . | . . . . Level 2 . | . . . . Level 3 . | . . . . Level 4 . | . . . . Level 5 . | . . . . High Security . | . . . . Max Security . | . . . . Peak Influence 96 | 10 96 . 76 Initial 62 | . . . 62 Average 15 | 1 13 . 22 Influence Increases 830 | 35 275 385 135 Destroy 0b10 Robot/C 380 | . 180 200 . Destroy 0b10 Robot/NC 45 | 35 10 . . Destroy Leader 62 | . 42 20 . Successful Hack 26 | . 12 . 14 Select Force Hacks 120 | . . . 120 Destroy Structure 17 | . 16 . 1 Lose Combat Pursuer 180 | . 15 165 . Influence Decreases 830 | 35 275 254 266 Entered New Map 69 | . . . 69 Time Decay 721 | 35 265 224 197 Lost Part 40 | . 10 30 . Squads Dispatched 2 | . 2 . . Investigation . | . . . . Extermination . | . . . . Reinforcement 2 | . 2 . . Assault . | . . . . Garrison . | . . . . Intercept . | . . . . Searches Triggered . | . . . . Construction Impeded . | . . . . Haulers Reinforced . | . . . . Active Scanning Responses . | . . . . Cargo Convoy Interrupts . | . . . . Stealth | -11 -10 -10 -7 --------- Run | Yrd Mat Sub Rec Distress Signals 2 | . 2 . . Communications Jammed . | . . . . Distress Signals . | . . . . Times Spotted 55 | . 24 29 2 Peak Tracking Total 5 | . 5 4 2 Tactical Retreats 7 | . 1 6 . Traps | -11 -10 -10 -7 ------- Run | Yrd Mat Sub Rec Traps Triggered . | . . . . Indirectly . | . . . . Trap Hack Attempts . | . . . . Triggered . | . . . . Disarmed . | . . . . Reprogrammed . | . . . . Reused . | . . . . Traps Extracted . | . . . . Installed . | . . . . Triggered . | . . . . Machines | -11 -10 -10 -7 ---------- Run | Yrd Mat Sub Rec Machines Disabled . | . . . . Max in Single Turn . | . . . . Machines Repaired . | . . . . Machines Dismantled . | . . . . Machines Sabotaged . | . . . . Overloaded Fab Kills . | . . . . Hacking | -11 -10 -10 -7 --------- Run | Yrd Mat Sub Rec Machines Accessed 13 | . 5 2 6 Terminals 7 | . 5 . 2 Fabricators . | . . . . Repair Stations . | . . . . Recycling Units 4 | . . . 4 Scanalyzers . | . . . . Garrison Access . | . . . . Total Hacks 24 | . 12 2 10 Successful 17 | . 9 2 6 Failed 7 | . 3 . 4 Catastrophic 1 | . 1 . . Database Lockouts . | . . . . Manual 22 | . 12 . 10 Terminals 16 | . 12 . 4 Fabricators . | . . . . Repair Stations . | . . . . Recycling Units 6 | . . . 6 Scanalyzers . | . . . . Garrison Access . | . . . . Terminal Hacks 3 | . 1 2 . Part Schematic 1 | . 1 . . Open Door 1 | . . 1 . Release Object 1 | . . 1 . Fabricator Hacks . | . . . . Repair Station Hacks . | . . . . Recycling Unit Hacks . | . . . . Scanalyzer . | . . . . Garrison Access Hacks . | . . . . Unauthorized Hacks 14 | . 8 . 6 Terminals 10 | . 8 . 2 Assimilate 1 | . 1 . . Botnet 4 | . 2 . 2 Skim 5 | . 5 . . Fabricators . | . . . . Repair Stations . | . . . . Recycling Units 4 | . . . 4 Tunnel 4 | . . . 4 Scanalyzers . | . . . . Garrison Access . | . . . . Data Cores Recovered . | . . . . Used . | . . . . Hacking Detections 5 | . 4 . 1 Full Trace Events . | . . . . Feedback Events . | . . . . Feedback Blocked . | . . . . Robot Schematics Acquired . | . . . . Robots Built . | . . . . Authchips . | . . . . Time . | . . . . Total Robot Build Rating . | . . . . Part Schematics Acquired 1 | . 1 . . Parts Built . | . . . . Authchips . | . . . . Time . | . . . . Total Part Build Rating . | . . . . Part Studies Acquired . | . . . . Parts Repaired . | . . . . Time . | . . . . Parts Recycled . | . . . . Recycled Matter . | . . . . Retrieved Matter . | . . . . Retrieved Components . | . . . . Parts Scanalyzed . | . . . . Part Schematics Acquired . | . . . . Parts Damaged . | . . . . Bothacking | -11 -10 -10 -7 ------------ Run | Yrd Mat Sub Rec Used RIF Installer . | . . . . Robots Hacked 1 | . . 1 . Non-combat . | . . . . Combat 1 | . . 1 . Robot Hacks Applied 1 | . . 1 . parse_system 1 | . . 1 . Relay Couplers Released . | . . . . Fabnet Peak Effective % . | . . . . Robots Rewired . | . . . . Allies Hacked . | . . . . Hacks Repelled . | . . . . Allies | -11 -10 -10 -7 -------- Run | Yrd Mat Sub Rec Total Allies 1 | . 1 . . Largest Group 1 | . 1 . . Highest-Rated Group 10 | . 10 . . Highest-Rated Ally 10 | . 10 . . Total Orders . | . . . . Ally Attacks . | . . . . Total Damage . | . . . . Kills . | . . . . Allies Corrupted . | . . . . Allies Melted . | . . . . Intel | -11 -10 -10 -7 ------- Run | Yrd Mat Sub Rec Active Infowar (turns) 2622 | 3 1461 1158 . Seismic 2622 | 3 1461 1158 . Robot Analysis Total . | . . . . Derelict Logs Recovered 2 | . . 2 . Drone Launches . | . . . . Drone Recoveries . | . . . . Exploration | -11 -10 -10 -7 ------------- Run | Yrd Mat Sub Rec Turns Passed 5558 | 183 1461 3229 685 Spaces Moved 2738 | 72 642 1764 260 Core 15 | 15 . . . Treads 1388 | 55 642 431 260 Legs . | . . . . Wheels 1335 | 2 . 1333 . Hover . | . . . . Flight . | . . . . Fastest Speed 50 | 50 160 95 250 Average Speed 175 | 135 199 156 250 Slowest Speed 250 | 160 240 250 250 Overloaded Moves . | . . . . Propulsion Burnouts . | . . . . Robots Hopped . | . . . . Potential Cave-ins 2 | . . 2 . Cave-ins Triggered 1 | . . 1 . Exploration Rate (%) 48 | 4 93 58 38 Regions Visited 3 Branch Regions 2 Pre-discovered Areas 7 | . 1 2 4 Known Exits Taken 1 | . 1 . . Unknown Exits Taken 2 | 1 . 1 . Scrap Searched 2 | . . 2 . Spaces Dug 17 | . . 16 1 Terrain Destroyed 66 | . 22 43 1 Melee . | . . . . Projectile 22 | . . 21 1 AOE 44 | . 22 22 . Terrain Rammed . | . . . . Walls Destroyed . | . . . . Machines Disabled . | . . . . Actions | -11 -10 -10 -7 --------- Run | Yrd Mat Sub Rec Total 3237 | 114 746 2102 275 Wait 191 | . 39 152 . Move 2734 | 71 641 1762 260 Hop . | . . . . Pick Up 49 | 12 12 25 . Fast Attach 6 | 2 . 4 . Attach 13 | 6 1 6 . Detach . | . . . . Swap 24 | . 7 16 1 Drop 24 | 1 2 21 . Fire 173 | 21 40 102 10 Melee 3 | . . 3 . Ram . | . . . . Kick . | . . . . Crush 10 | 1 4 1 4 Escape Stasis 1 | . . 1 . Rewire . | . . . . Trap . | . . . . Miscellaneous 9 | . . 9 . Route ------- -11/Scrapyard -10/Materials (discovered 5 exits: [*Mat x3] / [*Min] / *Sub) -10/Subcaves (discovered 3 exits: [*Mat x2] / *Rec) -7/Recycling History --------- Turn | Location | Event 6 | -11/Scrapyard | Discovered new exit (range 14) 184 | -11/Scrapyard | Entered Materials 301 | -10/Materials | Build established: Mutant 352 | -10/Materials | Discovered new exit (range 15) 527 | -10/Materials | Discovered new exit (range 16) 825 | -10/Materials | Discovered new exit (range 8) 1280 | -10/Materials | Discovered new exit (range 16) 1346 | -10/Materials | Identified exit to Subcaves 1402 | -10/Materials | Learned 2 Storage zone layouts 1481 | -10/Materials | Learned location of 3 exits from Materials 1507 | -10/Materials | Learned location of Mines (-9) 1523 | -10/Materials | Loaded intel: 27 trap records 1587 | -10/Materials | Learned location of 2 exits from Mines 1645 | -10/Materials | Entered Subcaves 1646 | -10/Subcaves | Approached by a straggling Scientist 1704 | -10/Subcaves | Discovered new exit (range 15) 1750 | -10/Subcaves | Learned location of Storage (-7) 2100 | -10/Subcaves | Build established: Scavenger-Mutant 2282 | -10/Subcaves | Ambushed by Subdweller buried in earth 2604 | -10/Subcaves | A swath of the cavern ceiling suddenly collapsed 2785 | -10/Subcaves | Core integrity fell below 50% 2884 | -10/Subcaves | Disturbed a concealed Subdweller 3070 | -10/Subcaves | Discovered new exit (range 16) 3086 | -10/Subcaves | Build established: Subdweller-Mutant 3912 | -10/Subcaves | Discovered new exit (range 5) 3985 | -10/Subcaves | Crushed by falling debris 4272 | -10/Subcaves | Build established: Mutant 4320 | -10/Subcaves | Found SUBCON Basin 4764 | -10/Subcaves | Build established: Scavenger-Mutant 4874 | -10/Subcaves | Entered Recycling 5546 | -7/Recycling | Core integrity fell below 20% 5559 | -7/Recycling | Destroyed by Y-54 Guardian with Gatling Laser Last Messages --------------- System corrupted: Energy discharge (-70). System corrupted: Energy discharge (-74). Slammed into R-06 Scavenger. Slammed into U-05 Engineer. System corrupted: FCS attempts to trigger Sub. Laser. System corrupted: Sub. Laser misfires. System corrupted: Matter fused (-10). JGDBM:MDND%BPP&D